Workbook

Sheet 拨付表民政局
A1: 2025年5月高龄补贴资金拨付表 编制单位：石城县民政局 制表时间：2025年5月13日 单位：（人、元）
A2: 乡镇 年龄 | B2: 上月高龄补贴 | D2: 本月高龄补贴变动情况 | J2: 本月高龄补贴
B3: 人数 | C3: 拨付金额 | D3: 新增人数 | E3: 新增金额 | F3: 退出人数 | G3: 退出金额 | H3: 调标前金额 | I3: 调标后金额 | J3: 80—84周岁 | L3: 85-89周岁 | N3: 90-94周岁 | P3: 95—99周岁 | R3: 100周岁以上 | T3: 人数 | U3: 拨付金额
J4: 人数 | K4: 金额 | L4: 人数 | M4: 金额 | N4: 人数 | O4: 金额 | P4: 人数 | Q4: 金额 | R4: 人数 | S4: 金额
A5: 琴江镇 | B5: 1159 | C5: 100700 | D5: 18 | E5: 2750 | F5: 9 | G5: 750 | H5: 2400 | I5: 1850 | J5: 645 | K5: 34100 | L5: 400 | M5: 40350 | N5: 106 | O5: =N5*200 -> 21200 | P5: 15 | Q5: =P5*300 -> 4500 | R5: 2 | S5: 2000 | T5: =R5+P5+N5+L5+J5 -> 1168 | U5: =K5+M5+O5+Q5+S5 -> 102150
A6: 城市社区管委会 | B6: 944 | C6: 81350 | D6: 7 | E6: 1250 | F6: 7 | G6: 700 | H6: 1750 | I6: 1550 | J6: 512 | K6: 26500 | L6: 334 | M6: =L6*100 -> 33400 | N6: 83 | O6: =N6*200 -> 16600 | P6: 14 | Q6: =P6*300 -> 4200 | R6: 1 | S6: 1000 | T6: =R6+P6+N6+L6+J6 -> 944 | U6: =K6+M6+O6+Q6+S6 -> 81700
A7: 小松镇 | B7: 867 | C7: 70000 | D7: 6 | E7: 300 | F7: 1 | G7: 100 | H7: 1000 | I7: 1350 | J7: 511 | K7: 25550 | L7: 294 | M7: 29400 | N7: 45 | O7: 9000 | P7: 22 | Q7: 6600 | R7: 0 | S7: 0 | T7: 872 | U7: 70550
A8: 木兰乡 | B8: 299 | C8: 24050 | D8: 2 | E8: 200 | F8: 1 | G8: 100 | H8: 450 | I8: 600 | J8: 164 | K8: 8300 | L8: 116 | M8: 11600 | N8: 16 | O8: 3200 | P8: 4 | Q8: 1200 | R8: 0 | S8: 0 | T8: 300 | U8: 24300
A9: 高田镇 | B9: 606 | C9: 48650 | D9: 7 | E9: 350 | F9: 1 | G9: 100 | H9: 800 | I9: 1400 | J9: 372 | K9: 18600 | L9: 190 | M9: =L9*100 -> 19000 | N9: 38 | O9: 7600 | P9: 11 | Q9: 3300 | R9: 1 | S9: 1000 | T9: 612 | U9: 49500
A10: 丰山乡 | B10: 465 | C10: 36150 | D10: 8 | E10: 500 | F10: 2 | G10: 300 | H10: 200 | I10: 400 | J10: 291 | K10: 14650 | L10: 145 | M10: 14500 | N10: 31 | O10: 6200 | P10: 4 | Q10: 1200 | R10: 0 | S10: 0 | T10: 471 | U10: 36550
A11: 屏山镇 | B11: 903 | C11: 83550 | D11: 6 | E11: 350 | F11: 8 | G11: 1000 | H11: 700 | I11: 1300 | J11: 458 | K11: 22800 | L11: 314 | M11: 31400 | N11: 108 | O11: 21600 | P11: 19 | Q11: 5700 | R11: 2 | S11: 2000 | T11: 901 | U11: 83500
A12: 大由乡 | B12: 559 | C12: 50000 | D12: 7 | E12: 950 | F12: 5 | G12: 450 | H12: 600 | I12: 1200 | J12: 290 | K12: 15100 | L12: 205 | M12: 20500 | N12: 57 | O12: 11400 | P12: 7 | Q12: 2100 | R12: 2 | S12: 2000 | T12: 561 | U12: 51100
A13: 龙岗乡 | B13: 293 | C13: 27450 | D13: 3 | E13: 150 | F13: 1 | G13: 50 | H13: 300 | I13: 600 | J13: 159 | K13: 7950 | L13: 97 | M13: 9700 | N13: 29 | O13: 5800 | P13: 8 | Q13: 2400 | R13: 2 | S13: 2000 | T13: 295 | U13: 27850
A14: 横江镇 | B14: 657 | C14: 62650 | D14: 2 | E14: 100 | F14: 5 | G14: 700 | H14: 500 | I14: 600 | J14: 333 | K14: 16650 | L14: 237 | M14: 23700 | N14: 62 | O14: 12400 | P14: 18 | Q14: 5400 | R14: 4 | S14: 4000 | T14: 654 | U14: 62150
A15: 赣江源镇 | B15: 517 | C15: 49500 | D15: 6 | E15: 600 | F15: 6 | G15: 450 | H15: 1400 | I15: 650 | J15: 276 | K15: 14100 | L15: 171 | M15: 17100 | N15: 54 | O15: 10800 | P15: 13 | Q15: 3900 | R15: 3 | S15: 3000 | T15: 517 | U15: 48900
A16: 珠坑乡 | B16: 360 | C16: 33650 | D16: 8 | E16: 950 | F16: 3 | G16: 250 | H16: 750 | I16: 850 | J16: 194 | K16: 10250 | L16: 117 | M16: 11700 | N16: 44 | O16: 8800 | P16: 9 | Q16: 2700 | R16: 1 | S16: 1000 | T16: 365 | U16: 34450
A17: 合计 | B17: =SUM(B5:B16) -> 7629 | C17: =SUM(C5:C16) -> 667700 | D17: =SUM(D5:D16) -> 80 | E17: 8450 | F17: 49 | G17: 4950 | H17: 10850 | I17: 12350 | J17: 4205 | K17: =SUM(K5:K16) -> 214550 | L17: 2620 | M17: 262350 | N17: 673 | O17: 134600 | P17: 144 | Q17: 43200 | R17: 18 | S17: 18000 | T17: 7660 | U17: 672700
A18: 备注：上月拨付金额+本月新增金额-本月退出金额-调标前金额+调标后金额=本月拨付金额
A19: 审批： 分管领导审核： 复核： 制表：陈小红
